{"text_format":"3","workbook":"xlsx","n_sheets":1,"sheets":["Общий рейтинг"],"not_rendered":{"defined_names":1},"read":"whole","date_system":"1900"}

{"sheet":"Общий рейтинг","index":0,"n_rows":98,"n_cols":18,"rows_kept":98,"merged":[[0,0,0,17]]}
["Итоговый оценочный лист\nОтборочного этапа III Всероссийского конкурса по прототипированию\n«Полет инженерных идей»"]
["№ п/п","ФИО 1 участника","ФИО 2 участника","ФИО 3 участника","Возрастная категория","Анализ аналогов","Формулировка целей и задач","Раскрытие замысла проекта","Предоставление детальной проработки идеи","Перспектива развития и реализация проекта","Наличие прототипа","Техническая эстетика","Защита проекта","Наличие рабочих файлов","Сумма","Работа была сдана в срок","Итоговый балл","Статус"]
[1,"Нейский Артём Александрович","Рахчеев Никита Сергеевич","Черепанова Варвара Николаевна","5-8 класс",2.5,3,3,0,2.5,1.5,1.5,5,3,{"$f":"SUM(F3:N3)","v":22},0.5,{"$f":"SUM(O3:P3)","v":22.5},"Прошли в финал"]
[2,"Филиппова Кира Андреевна","Молодцова Елизавета Сергеевна",null,"5-8 класс",1.5,3,3,0,2.5,0,3,5,3,21,0.5,21.5,"Прошли в финал"]
[3,"Ханова Елизавета Алексеевна","Панов Ростислав Владимирович",null,"5-8 класс",1.5,3,2.5,0,2.5,0.5,2.5,5,3,{"$f":"SUM(F5:N5)","v":20.5},0.5,21,"Прошли в финал"]
[4,"Баженова Валерия",null,null,"5-8 класс",2,3,3,0,2.5,2.5,1,3.5,2.5,{"$f":"SUM(F6:N6)","v":20},0.5,20.5,"Прошли в финал"]
[5,"Буторина София Игоревна","Перевозкина Анастасия Викторовна","Перминова Мария Владимировна","5-8 класс",1.5,2.5,2.5,0,1.5,3,2,4.5,2.5,{"$f":"SUM(F7:N7)","v":20},0.5,20.5,"Прошли в финал"]
[6,"Кошелев Евгений Вячеславович","Нияз Шайхутдинов Риназович","Япаров Кирилл Алексеевич","5-8 класс",2,2.5,2.5,0,2,3,2,3,3,20,0.5,20.5,"Прошли в финал"]
[7,"Юношев Михаил Михайлович","Тимашев Артем Иванович",null,"5-8 класс",1,2,3,0,2.5,3,2,3.5,3,20,0.5,20.5,"Прошли в финал"]
[8,"Сайфутдинова Сафина","Трихаева Александра","Данилова Вера","5-8 класс",1.5,2.25,2.25,0,1,3,2.5,4,3,19.5,0,19.5,"Прошли в финал"]
[9,"Велес Данихно",null,null,"5-8 класс",2.5,2.5,2.5,0,2,0,2,3.5,3,{"$f":"SUM(F11:N11)","v":18},0.5,18.5,"Прошли в финал"]
[10,"Крайнова Алена Алексеевна",null,null,"5-8 класс",1,1.5,3,0,1.5,3,2,4,2,18,0.5,18.5,"Прошли в финал"]
[11,"Талбутдинов Матвей","Соломенникова Софья","Акулов Тимофей","5-8 класс",1,2.5,2.5,0,2,3,2,3.5,1,{"$f":"SUM(F13:N13)","v":17.5},0.5,18,"Прошли в финал"]
[12,"Целищев Кирилл","Якубовская Арина",null,"5-8 класс",1,2,3,0,2.5,0,3,3.5,3,17.5,0.5,18,"Прошли в финал"]
[13,"Антропов Александр Владимирович",null,null,"5-8 класс",2.5,2,3,0,2,0,1.5,3,3,{"$f":"SUM(F15:N15)","v":17},0.5,17.5,"Прошли в финал"]
[14,"Гурова Полина Ивановна",null,null,"5-8 класс",1,1.5,2,0,2.5,2.5,1.5,3,3,17,0.5,17.5,"Прошли в финал"]
[15,"Дергачева Мария Максимовна","Заякин Павел Михайлович",null,"5-8 класс",0.5,2,2,0,1.5,3,2,3,3,{"$f":"SUM(F17:N17)","v":17},0.5,17.5,"Прошли в финал"]
[28,"Шаймарданов Даниль","Салин Максим","Рошко Артём","5-8 класс",2,1.25,3,0,1.5,2,1,4,2,{"$f":"SUM(F18:N18)","v":16.75},0.5,17.25,"Прошли в финал"]
[16,"Астафьев Владислав Витальевич",null,null,"5-8 класс",2,3,2.5,0,1.5,0,1.5,3.5,2,{"$f":"SUM(F19:N19)","v":16},0.5,16.5,"Прошли в финал"]
[17,"Волков Даниил","Бастрикова Елизавета",null,"5-8 класс",1.25,1,2,0,2,2,2,3,2,15.25,0.5,15.75,"Прошли в финал"]
[18,"Антонов Алексей","Курманин Александр",null,"5-8 класс",1,0.5,2.5,0,2.5,0,1,4,3,14.5,0.5,15,"Прошли в финал"]
[19,"Баранов Александр Иванович","Залогинов Иван Сергеевич","Слесаренко Андрей Юрьевич","5-8 класс",2,1.5,3,0,1,0.5,1,2.5,3,{"$f":"SUM(F22:N22)","v":14.5},0.5,15,"Прошли в финал"]
[21,"Филатова Алена","Артюх Глеб","Астафьев Кирилл","5-8 класс",2,1.5,2,0,2,0,2,3,2,14.5,0.5,15,"Прошли в финал"]
[20,"Сорина Екатерина Вадимовна",null,null,"5-8 класс",1.5,3,2,0,1.5,2,2,1,1.5,14.5,0,14.5,"Прошли в финал"]
[22,"Колмакова Александра Германовна","Илюшкина Кира Сергеевна","Горозовская Маргарита Вадимовна","5-8 класс",2,1.5,1.5,0,1,0,1.5,3.5,3,{"$f":"SUM(F25:N25)","v":14},0.5,14.5,"Прошли в финал"]
[23,"Папулов Всеволод Владиславович",null,null,"5-8 класс",2,2,2,0,2,2,1,1,2,14,0.5,14.5,"Прошли в финал"]
[24,"Чернов Эльдар Витальевич","Котов Евгений Николаевич",null,"5-8 класс",2,1,2,0,1,2,1,3,2,14,0.5,14.5,"Прошли в финал"]
[25,"Мухутдинов Денис Шамильевич",null,null,"5-8 класс",1,2.25,1.25,0,1.5,2.5,2,1,2,13.5,0,13.5,"Резерв"]
[26,"Макаричева Лиля","Храмов Дима",null,"5-8 класс",1,2,1.5,0,1,0,2.5,3,2,13,0.5,13.5,"Резерв"]
[27,"Берандзе Алина Шакроевна","Яковлева Ксения Александровна",null,"5-8 класс",1.25,1.5,1,0,1,2,1,3,2,12.75,0.5,13.25,"Резерв"]
[29,"Абдуллаев Руслан Ринатович","Давыдов Антон Константинович","Михалицына Валерия","5-8 класс",1,1,1.5,0,2,0.5,2.5,3,1,{"$f":"SUM(F31:N31)","v":12.5},0.5,13,"Резерв"]
[30,"Авдалян Тигран Аликович","Алтынбаев Асхат Маратович","Хакимов Тимур Ильназович","5-8 класс",1.5,1,2,0,2,0,2,1,3,12.5,0.5,13,"Резерв"]
[31,"Габдуллин Саид Ильдарович",null,null,"5-8 класс",1,1,2.5,0,2,0,2,3,1,12.5,0.5,13,"Резерв"]
[32,"Шаталова Ирина Дмитриевна","Панин Максим Дмитриевич",null,"5-8 класс",1,0,2.5,0,2,0,2,3,2,{"$f":"SUM(F34:N34)","v":12.5},0.5,13,"Резерв"]
[33,"Елеуров Рухшар",null,null,"5-8 класс",1.25,2,2,0,2,2,2,1,0,12.25,0.5,{"$f":"SUM(O35:P35)","v":12.75},"Резерв"]
[34,"Тимаков Даниил",null,null,"5-8 класс",1,2,2.5,0,1.5,0,1,2,2,12,0.5,12.5,"Резерв"]
[35,"Бондарнеко Тимофей Александрович",null,null,"5-8 класс",1,1,1,0,1.5,1,1,3,2,11.5,0.5,12,"Резерв"]
[36,"Быковский Александр Вячеславович","Лубенец Захар Евгеньевич",null,"5-8 класс",0.85,1,1,0,1.5,2,1,1,2,10.35,0.5,10.85,"Спасибо за участие"]
[37,"Дубинина Вера Владимировна","Золотарев Дмитрий Дмитриевич","Бухмаров Илья Владимирович","5-8 класс",1.25,1,1,0,1,1,1,2,2,10.25,0.5,10.75,"Спасибо за участие"]
[38,"Кокорин Дмитрий Павлович",null,null,"5-8 класс",1,1,0.5,0,1,0,1,2.5,3,{"$f":"SUM(F40:N40)","v":10},0.5,10.5,"Спасибо за участие"]
[39,"Филиппова Софья Андреевна","Нугуманова Энжия Ильнуровна",null,"5-8 класс",1.25,1.5,1,0,1,2,1,2,0,9.75,0.5,10.25,"Спасибо за участие"]
[40,"Ложкина Полина Романовна","Прилукова Ирина Алексеевна","Букина Дарья Андреевна","5-8 класс",1.25,1.5,1,0,1,1,1.5,2,0,9.25,0.5,9.75,"Спасибо за участие"]
[41,"Жилин Александр Андреевич","Тимофеев Михаил Александрович",null,"5-8 класс",1,1,1,0,1,1,1,2,1,9,0.5,9.5,"Спасибо за участие"]
[42,"Киселев Максим Алексеевич","Петрушин Никита Александрович","Михаил Белов Евгеньевич","5-8 класс",1,2,2.5,0,1.5,0,1,0,1,9,0.5,9.5,"Спасибо за участие"]
[43,"Кузнецов Андрей Сергеевич","Своровской Кирилл Андреевич","Жмаев Тимофей Александрович","5-8 класс",1,1,3,0,1.5,0,1,0,1,8.5,0.5,9,"Спасибо за участие"]
[44,"Заривный Влад","Резвухин Максим","Эйрих Дмитрий","5-8 класс",1.25,1,1,0,1,1,0,3,0,8.25,0.5,8.75,"Спасибо за участие"]
[45,"Коржов Владимир","Абжинова Анна",null,"5-8 класс",1,1.5,2,0,1.5,0,1,0,1,8,0.5,8.5,"Спасибо за участие"]
[46,"Сухотчкенко Валерий","Редькин Владимир",null,"5-8 класс",1,1,1,0,0.5,1,1,2,0,7.5,0.5,8,"Спасибо за участие"]
[47,"Уваров Кирилл Константинович","Сайдяшев Иван Алексеевич","Чаванин Иван Андреевич","5-8 класс",0.5,1,1,0,1,1,1,2,0,7.5,0.5,8,"Спасибо за участие"]
[48,"Бобылева Анастасия Андреевна","Вахрамеева Олеся Романовна","Фирулёва Полина Константиновна","5-8 класс",1,1.5,0.5,0,0.5,1,0.5,2,0,7,0.5,7.5,"Спасибо за участие"]
[49,"Голоюхова Виктория Александровна",null,null,"5-8 класс",0,1,0.75,0,1,1,1,0,0,4.75,0.5,5.25,"Спасибо за участие"]
[50,"Коржов Владимир Денисович","Абжинова Анна",null,"5-8 класс",0,0,0,0,0,0,0,0,0,0,0.5,0.5,"Спасибо за участие"]
[51,"Храмов Дима","Макаричева Лиля",null,"5-8 класс",0,0,0,0,0,0,0,0,0,0,0.5,0.5,"Спасибо за участие"]
[52,"Кочетков Никита","Аникина Алина","Сергеева Екатерина","9-11 класс",1,3,3,0,3,3,3,3,3,{"$f":"SUM(F54:N54)","v":22},0.5,22.5,"Прошли в финал"]
[53,"Севостьянов Илья Владимирович","Захарова Дарья Михайловна","Шуляк Платон Андреевич","9-11 класс",2,2.75,3,0,2,3,3,2.5,3,21.25,0.5,21.75,"Прошли в финал"]
[54,"Бодров Никита Александрович","Малкин Егор Михайлович",null,"9-11 класс",2,3,2.5,0,2,2.5,3,2.75,3,20.75,0.5,21.25,"Прошли в финал"]
[55,"Грачев Роман Игоревич","Галиева Регина Радиковна","Головлёва Алёна Михайловна","9-11 класс",2,3,3,0,2,1.5,3,3,3,20.5,0.5,21,"Прошли в финал"]
[56,"Моторин Данил Алексеевич","Агапов Михаил Андреевич",null,"9-11 класс",2,2,2.5,0,2,3,3,2.5,3,20,0.5,20.5,"Прошли в финал"]
[57,"Мария Жарикова","Арина Ослопова","Максим Попов","9-11 класс",2,2,1,0,3,3,2.5,3,3,19.5,0.5,20,"Прошли в финал"]
[58,"Акрамов Дмитрий Денисович","Гордиенко Егор Сергеевич",null,"9-11 класс",2,2,2.5,0,1,3,2,3.5,3,19,0.5,19.5,"Прошли в финал"]
[59,"Галиева Регина","Грачев Роман","Головлева Алена","9-11 класс",1,3,3,0,3,0,3,3,3,{"$f":"SUM(F61:N61)","v":19},0.5,19.5,"Прошли в финал"]
[60,"Ростислав Пигин","Вячеслав Мошкин",null,"9-11 класс",2,3,2,0,2,2,2,3,3,{"$f":"SUM(F62:N62)","v":19},0.5,19.5,"Прошли в финал"]
[61,"Серебряков Дмитрий Викторович",null,null,"9-11 класс",2,2.5,2.5,0,1,2.5,2.5,3.5,2.5,19,0.5,19.5,"Прошли в финал"]
[62,"Кабаненко Никита Константинович","Деревянных Владимир Семенович","Малинин Данила Григорьевич","9-11 класс",2,2.5,2.75,0,2,1,2.5,3,3,{"$f":"SUM(F64:N64)","v":18.75},0.5,19.25,"Прошли в финал"]
[63,"Иванова Екатерина Александровна","Воронцова Екатерина Сергеевна",null,"9-11 класс",2,2.5,3,0,2,1.5,1.5,4,2,18.5,0.5,19,"Прошли в финал"]
[64,"Каримуллин Семен Сергеевич","Круглова Анастасия Борисовна",null,"9-11 класс",2,2.5,2.25,0,2,1.5,2.5,2.5,3,{"$f":"SUM(F66:N66)","v":18.25},0.5,18.75,"Прошли в финал"]
[65,"Суворов Георгий Вячеславович","Новиков Тимофей Дмитриевич","Проскурин Иван Андреевич","9-11 класс",1,1.5,3,0,1,3,2,4,2.5,18,0.5,{"$f":"SUM(O67:P67)","v":18.5},"Прошли в финал"]
[66,"Ларина Арина Юрьевна","Черенкова Анастасия Викторовна",null,"9-11 класс",2,2.5,2,0,0.5,2.5,2,3.5,2.5,17.5,0.5,18,"Прошли в финал"]
[67,"Нуриев Салават Маратович","Посмыгаев Илья Сергеевич","Шуралёва Елизавета Максимовна","9-11 класс",0.5,2,1,0,0.5,3,3,4,3,17,0.5,17.5,"Прошли в финал"]
[68,"Парфиненко Егор Сергеевич","Хиштова Екатерина Казбековна","Пащенко Дмитрий Евгеньевич","9-11 класс",1,2.5,1.5,0,2.25,2.25,2.5,2,3,{"$f":"SUM(F70:N70)","v":17},0.5,17.5,"Прошли в финал"]
[69,"Тулькубаев Марат Ильдарович","Малышев Никита Александрович",null,"9-11 класс",2,2,2,0,2,2,2,2,3,17,0.5,17.5,"Прошли в финал"]
[70,"Хоруженко Ярослав Александрович","Хохлов Андрей Викторович",null,"9-11 класс",2,1.75,1.5,0,1,3,2.75,2,3,17,0.5,17.5,"Прошли в финал"]
[96,"Шутов Дмитрий","Мякишева Александра",null,"9-11 класс",3,3,1.5,0,2,3,1,0.5,3,17,0.5,17.5,"Прошли в финал"]
[71,"Вавилов Никита Олегович","Реган Виктор Владиславович","Соловьёв Андрей Ильич","9-11 класс",2,2.5,1,0,1.5,2,2.5,2.25,3,16.75,0.5,17.25,"Прошли в финал"]
[72,"Галлямов Камиль Ленарович","Якупов Динар Раисович","Макарова Анастасия Евгеньевна","9-11 класс",2,3,1,0,2,1.5,3,1,3,16.5,0.5,17,"Прошли в финал"]
[73,"Кирпиченко Вячеслав","Отавин Евгений",null,"9-11 класс",3,3,3,0,1,0,1,2.5,3,16.5,0.5,17,"Прошли в финал"]
[74,"Абдуллаев Рамиль Ринатович","Миронов Александр Алексеевич",null,"9-11 класс",1.5,3,1,0,0.5,2.5,1.5,3,3,16,0.5,16.5,"Прошли в финал"]
[75,"Гених Дмитрий Сергеевич","Фролов Савелий Вадимович",null,"9-11 класс",0.25,1.5,2.25,0,0.75,2.75,2.5,2.75,3,15.75,0.5,16.25,"Прошли в финал"]
[76,"Паньков Евгений Александрович","Хренов Илья Андреевич","Галактионов Сергей Алексеевич","9-11 класс",1,2,1.75,0,0.75,2.25,2,3,3,15.75,0.5,16.25,"Прошли в финал"]
[77,"Кильдюшкин Владимир","Буданова Алина",null,"9-11 класс",1,3,3,0,1.5,0,1,3,3,{"$f":"SUM(F80:N80)","v":15.5},0,15.5,"Резерв"]
[78,"Олейник София Сергеевна","Кожевников Владислав Александрович",null,"9-11 класс",2,2,2.25,0,1.25,1.5,2,2,2,{"$f":"SUM(F81:N81)","v":15},0.5,15.5,"Резерв"]
[79,"Федоренко Владислав",null,null,"9-11 класс",1,1,3,0,1,3,2,2,2,{"$f":"SUM(F82:N82)","v":15},0.5,15.5,"Резерв"]
[80,"Саенко Даниил Евгеньевич","Колодин Никита Витальевич",null,"9-11 класс",1,1.5,1.25,0,0,3,2.5,2.5,3,14.75,0.5,15.25,"Резерв"]
[81,"Аминов Данила","Кантинов Вячеслав","Митрофанов Никита","9-11 класс",1,2,2,0,1.5,1.5,2,2.5,2,{"$f":"SUM(F84:N84)","v":14.5},0.5,15,"Резерв"]
[82,"Дубенко Владислав Георгиевич","Вострокнутов Дмитрий Александрович","Калабин Дмитрий Владимирович","9-11 класс",2,1.5,1.25,0,1.25,2,2.25,2,2,{"$f":"SUM(F85:N85)","v":14.25},0.5,14.75,"Резерв"]
[83,"Гапеева Татьяна Артуровна","Фирсова Елизавета Андреевна",null,"9-11 класс",1,1,1.5,0,0.5,2,2,4,1.5,13.5,0.5,14,"Резерв"]
[84,"Жирова Анна","Яшников Владислав","Голых Максим","9-11 класс",1,3,2,0,1,0,1,2,3,{"$f":"SUM(F87:N87)","v":13},0.5,13.5,"Резерв"]
[85,"Вахрушева Анастасия Юрьевна","Братчикова Валерия Сергеевна","Кадулин Максим Сергеевич","9-11 класс",1.75,2,2.25,0,1,1.5,2.25,1,1,{"$f":"SUM(F88:N88)","v":12.75},0.5,13.25,"Резерв"]
[86,"Пшеницына Полина ","Егорычев Данила","Зяблов Роман","9-11 класс",0.5,3,3,0,1,0,1,1,3,{"$f":"SUM(F89:N89)","v":12.5},0.5,13,"Резерв"]
[87,"Шутов Даниил","Каркотин Олег",null,"9-11 класс",1,1,3,0,2,0,1,3,0,{"$f":"SUM(F90:N90)","v":11},0,11,"Спасибо за участие"]
[88,"Обельчак Александр Андреевич","Рязанцев Данил Алексеевич","Горячкин Владислав Вячеславович","9-11 класс",0.5,0.5,1.5,0,1,1,0.5,3,1.5,9.5,0.5,10,"Спасибо за участие"]
[89,"Лунев Денис Сергеевич","Орехов Пётр Валерьевич",null,"9-11 класс",1,2,1,0,1,0,2,0,2,{"$f":"SUM(F92:N92)","v":9},0.5,9.5,"Спасибо за участие"]
[90,"Букирев Владислав Семёнович","Денисенко Иван Павлович","Деревенский Вячеслав Романович","9-11 класс",1,2,1,0,0.25,1,0.75,0,0.75,{"$f":"SUM(F93:N93)","v":6.75},0.5,7.25,"Спасибо за участие"]
[91,"Николаюк Наталья Сергеевна","Новожилов Максим Денисович",null,"Студенты",1,1.5,2,2,2.5,2.5,3,5,3,{"$f":"SUM(F94:N94)","v":22.5},0.5,23,"Прошли в финал"]
[92,"Морозова Дарья Алексеевна","Бобылев Данил Андреевич","Хохрякова Екатерина Сергеевна","Студенты",1.25,2,2,2,2,2,3,3,2,19.25,0.5,19.75,"Прошли в финал"]
[93,"Егорова Екатерина Андреевна","Каминская Владислава Александровна","Малаев Евгений Валерьевич","Студенты",1,0.5,0.5,1,3,3,3,3.5,3,{"$f":"SUM(F96:N96)","v":18.5},0.5,19,"Прошли в финал"]
[94,"Калинин Тимофей Александрович",null,null,"Студенты",1.5,2,2,3,1,0,2.5,3.5,3,{"$f":"SUM(F97:N97)","v":18.5},0,18.5,"Прошли в финал"]
[95,"Бабкин Артём Дмитриевич","Докучаева Евгения Александровна","Максимов Руслан Сергеевич","Студенты",2,2,2,2,1,2,2,3,2,18,0.5,18.5,"Прошли в финал"]